[Event "32nd Panamerican Youth 2022"]
[Site "Montevideo"]
[Date "2022.06.27"]
[Round "2.27"]
[White "Melian, Juan Sebastian"]
[Black "Ballesteros Cardenas, Leonardo"]
[Result "1-0"]
[ECO "E52"]
[WhiteElo "2069"]
[BlackElo "2033"]
[Annotator "NA RC"]
[PlyCount "113"]
[EventDate "2022.06.26"]
[EventType "swiss"]
[EventCountry "URU"]
[SourceTitle "playchess.com"]
[Source "ChessBase"]
[SourceQuality "1"]
[TimeControl "5400+30"]

1. d4 {[%emt 0:00:30]} Nf6 {[%emt 0:00:06]} 2. c4 {[%emt 0:00:05]} e6 {[%emt 0:00:04]} 3. Nc3 {[%emt 0:00:21]} Bb4 {[%emt 0:00:05]} 4. e3 {[%emt 0:00:09]} O-O {[%emt 0:00:19]} 5. Bd3 {[%emt 0:00:06]} d5 {[%emt 0:00:24]} 6. Nf3 {[%emt 0:00:17]} b6 {[%emt 0:00:09]} 7. O-O {[%emt 0:03:06]} dxc4 8. Bxc4 {[%emt 0:01:00]} Ba6 {[%emt 0:01:49]} 9. Bxa6 Nxa6 {[%emt 0:00:02]} 10. Qe2 {[%emt 0:14:07]} Qc8 {[%emt 0:02:35]} 11. a3 {[%emt 0:00:12]} Bxc3 12. bxc3 {[%emt 0:00:02]} Qb7 {[%emt 0:07:39]} 13. Ne5 {[%emt 0:02:04]} c5 {[%emt 0:01:44]} 14. Bb2 {[%emt 0:00:09]} Rac8 {[%emt 0:02:48]} 15. f3 {[%emt 0:17:30]} Rfd8 {[%emt 0:10:18]} 16. e4 {[%emt 0:07:50]} Nb8 {[%emt 0:03:28]} 17. Rfd1 {[%emt 0:11:31]} Nc6 {[%emt 0:01:59]} 18. Nxc6 {[%emt 0:00:30]} Qxc6 {[%emt 0:00:30]} 19. Rac1 {[%emt 0:06:18]} Rd7 20. Rd2 {[%emt 0:00:18]} Rcd8 {[%emt 0:19:03]} 21. Rcd1 {[%emt 0:00:30]} Ne8 {[%emt 0:00:30]} 22. d5 {[%emt 0:00:30]} exd5 {[%emt 0:01:17]} 23. exd5 {[%emt 0:09:56]} Qg6 {[%emt 0:01:11]} 24. c4 {[%emt 0:02:12]} Nd6 {[%emt 0:00:15]} 25. Re1 {[%emt 0:04:39]} f6 {[%emt 0:02:47]} 26. Qf1 {[%emt 0:05:05]} Re8 {[%emt 0:02:07]} 27. Rde2 {[%emt 0:01:25]} Kf8 {[%emt 0:02:49]} 28. f4 {[%emt 0:02:13]} Rde7 {[%emt 0:00:36]} 29. Be5 {[%emt 0:07:24]} fxe5 {[%emt 0:10:13]} 30. fxe5+ {[%emt 0:00:01]} Rf7 {[%emt 0:00:00]} 31. Rf2 {[%emt 0:03:41]} Nf5 {[%emt 0:02:02]} 32. e6 {[%emt 0:00:46]} Rf6 {[%emt 0:00:12]} 33. Qe2 {[%emt 0:01:30]} Nd4 {[%emt 0:08:07]} 34. Rxf6+ {[%emt 0:00:13]} gxf6 {[%emt 0:00:13]} 35. Qf2 {[%emt 0:00:59]} Qg5 {[%emt 0:09:37]} 36. h4 {[%emt 0:00:36]} Qg6 {[%emt 0:00:44]} 37. Re3 {[%emt 0:00:40]} f5 {[%emt 0:03:19]} 38. Qf4 {[%emt 0:00:30]} Qg7 {[%emt 0:02:44]} 39. h5 {[%emt 0:00:26]} Qf6 {[%emt 0:01:29]} 40. Kh2 {[%emt 0:00:33]} Kg8 {[%emt 0:02:21]} 41. Rh3 {[%emt 0:00:34]} Kh8 {[%emt 0:00:29]} 42. Re3 {[%emt 0:00:28]} a6 {[%emt 0:00:34]} 43. a4 {[%emt 0:00:05]} b5 {[%emt 0:02:21]} 44. axb5 {[%emt 0:00:14]} axb5 {[%emt 0:00:00]} 45. cxb5 {[%emt 0:00:01]} Nxb5 {[%emt 0:00:02]} 46. d6 {[%emt 0:01:23]} Rxe6 {[%emt 0:00:21]} 47. d7 {[%emt 0:00:10]} Rxe3 {[%emt 0:00:39]} 48. Qb8+ {[%emt 0:00:06]} Kg7 {[%emt 0:00:52]} 49. d8=Q {[%emt 0:00:06]} Qxd8 {[%emt 0:01:16]} 50. Qxd8 {[%emt 0:00:01]} Re6 {[%emt 0:02:34]} 51. Qd7+ {[%emt 0:00:10]} Kf6 {[%emt 0:00:03]} 52. Qxb5 {[%emt 0:00:05]} Kg5 {[%emt 0:00:13]} 53. Qxc5 {[%emt 0:00:17]} Re4 {[%emt 0:01:17]} 54. g3 {[%emt 0:01:21]} h6 {[%emt 0:00:36]} 55. Kh3 {[%emt 0:00:35]} Re6 {[%emt 0:00:26]} 56. Qf8 {[%emt 0:00:49]} Re4 {[%emt 0:00:18]} 57. Qf7 {[%emt 0:00:35]} 1-0

[Event "32nd Panamerican Youth 2022"]
[Site "Montevideo"]
[Date "2022.06.27"]
[Round "2.29"]
[White "Borda Rodas, Anapaola S."]
[Black "Perez Hernandez, Vicmary C."]
[Result "0-1"]
[ECO "C77"]
[WhiteElo "2141"]
[BlackElo "1909"]
[Annotator "RC"]
[PlyCount "60"]
[EventDate "2022.06.26"]
[EventType "swiss"]
[EventCountry "URU"]
[SourceTitle "playchess.com"]
[Source "ChessBase"]
[SourceQuality "1"]
[TimeControl "5400+30"]

1. e4 {[%emt 0:01:37]} e5 {[%emt 0:00:42]} 2. Nf3 {[%emt 0:00:13]} Nc6 {[%emt 0:00:07]} 3. Bb5 {[%emt 0:00:06]} a6 {[%emt 0:00:20]} 4. Ba4 {[%emt 0:00:07]} Nf6 {[%emt 0:00:05]} 5. d4 exd4 {[%emt 0:12:19]} 6. O-O {[%emt 0:01:37]} Be7 {[%emt 0:07:08]} 7. Re1 {[%emt 0:05:15]} b5 {[%emt 0:01:33]} 8. Bb3 {[%emt 0:00:10]} d6 {[%emt 0:04:39]} 9. Bd5 {[%emt 0:01:31]} Nxd5 10. exd5 {[%emt 0:00:03]} Ne5 {[%emt 0:03:20]} 11. Nxd4 {[%emt 0:00:13]} O-O {[%emt 0:01:27]} 12. a4 {[%emt 0:00:56]} Bd7 {[%emt 0:12:19]} 13. Nc3 {[%emt 0:18:04]} Rb8 {[%emt 0:05:49]} 14. f4 {[%emt 0:20:39]} Ng4 {[%emt 0:09:23]} 15. axb5 {[%emt 0:08:36]} axb5 {[%emt 0:01:15]} 16. Ncxb5 {[%emt 0:07:07]} Bf6 {[%emt 0:17:56]} 17. Qd3 {[%emt 0:10:37]} Bxd4+ {[%emt 0:12:32]} 18. Nxd4 {[%emt 0:00:10]} Nxh2 {[%emt 0:00:37]} 19. Qg3 {[%emt 0:00:59]} Ng4 {[%emt 0:01:22]} 20. f5 {[%emt 0:01:22]} h5 {[%emt 0:00:25]} 21. b3 {[%emt 0:14:36]} Re8 {[%emt 0:01:57]} 22. Bb2 {[%emt 0:00:59]} Qg5 {[%emt 0:00:10]} 23. Bc1 {[%emt 0:05:48]} Rxe1+ {[%emt 0:01:20]} 24. Qxe1 {[%emt 0:00:01]} Qf6 {[%emt 0:00:18]} 25. Bb2 {[%emt 0:00:25]} Re8 {[%emt 0:00:51]} 26. Qd2 {[%emt 0:01:07]} Qe5 {[%emt 0:00:37]} 27. Kf1 {[%emt 0:01:07]} Qh2 {[%emt 0:01:53]} 28. Nf3 {[%emt 0:00:08]} Qh1+ {[%emt 0:00:08]} 29. Ng1 {[%emt 0:00:05]} Ne3+ {[%emt 0:00:06]} 30. Ke2 {[%emt 0:01:20]} Nc4+ {[%emt 0:00:10]} 0-1

[Event "32nd Panamerican Youth 2022"]
[Site "Montevideo"]
[Date "2022.06.27"]
[Round "2.30"]
[White "Garcia Andrada, Heidy Nicole"]
[Black "Sanchez Tobar, Francisca Valenti"]
[Result "1-0"]
[ECO "C54"]
[WhiteElo "1918"]
[BlackElo "1847"]
[Annotator "NA RC"]
[PlyCount "67"]
[EventDate "2022.06.26"]
[EventType "swiss"]
[EventCountry "URU"]
[SourceTitle "playchess.com"]
[Source "ChessBase"]
[SourceQuality "1"]
[TimeControl "5400+30"]

1. e4 {[%emt 0:00:05]} e5 {[%emt 0:00:19]} 2. Nf3 {[%emt 0:00:17]} Nc6 {[%emt 0:00:36]} 3. Bc4 {[%emt 0:00:06]} Bc5 {[%emt 0:00:46]} 4. c3 {[%emt 0:00:09]} Nf6 {[%emt 0:01:31]} 5. d3 {[%emt 0:00:10]} a6 {[%emt 0:03:09]} 6. O-O {[%emt 0:00:36]} O-O {[%emt 0:01:41]} 7. d4 {[%emt 0:00:23]} exd4 8. cxd4 {[%emt 0:00:26]} Be7 {[%emt 0:08:19]} 9. Nc3 {[%emt 0:02:24]} d6 {[%emt 0:05:10]} 10. h3 {[%emt 0:00:20]} h6 {[%emt 0:00:31]} 11. Re1 {[%emt 0:01:22]} Kh8 {[%emt 0:04:03]} 12. b3 {[%emt 0:17:59]} Nh7 {[%emt 0:16:33]} 13. Bb2 {[%emt 0:02:12]} Na5 {[%emt 0:09:57]} 14. Bd3 {[%emt 0:00:52]} f5 {[%emt 0:15:05]} 15. d5 {[%emt 0:02:58]} b6 {[%emt 0:04:41]} 16. Nd4 {[%emt 0:01:51]} f4 {[%emt 0:06:55]} 17. b4 {[%emt 0:03:36]} Nb7 {[%emt 0:00:19]} 18. Nc6 {[%emt 0:00:03]} Qd7 {[%emt 0:10:43]} 19. e5 {[%emt 0:01:02]} Nd8 {[%emt 0:00:52]} 20. Qc2 {[%emt 0:06:02]} Ng5 {[%emt 0:05:04]} 21. e6 {[%emt 0:05:07]} Ndxe6 {[%emt 0:00:49]} 22. Nxe7 {[%emt 0:00:13]} Qxe7 {[%emt 0:00:10]} 23. dxe6 {[%emt 0:00:09]} Bb7 {[%emt 0:04:15]} 24. Kh2 {[%emt 0:12:07]} f3 {[%emt 0:00:17]} 25. g3 {[%emt 0:00:20]} Nxh3 {[%emt 0:00:35]} 26. Kxh3 {[%emt 0:03:38]} Qg5 {[%emt 0:00:15]} 27. Kh2 {[%emt 0:00:15]} Rf4 {[%emt 0:00:51]} 28. Rh1 {[%emt 0:04:26]} Rg4 {[%emt 0:00:29]} 29. Ne4 {[%emt 0:15:11]} Rh4+ {[%emt 0:00:30]} 30. Kg1 {[%emt 0:00:08]} Rxh1+ {[%emt 0:00:14]} 31. Kxh1 {[%emt 0:00:03]} Qh5+ {[%emt 0:00:44]} 32. Kg1 {[%emt 0:00:05]} Qh3 {[%emt 0:00:35]} 33. Bf1 {[%emt 0:00:12]} Bxe4 {[%emt 0:00:29]} 34. Qxe4 {[%emt 0:00:20]} 1-0

[Event "32nd Panamerican Youth 2022"]
[Site "Montevideo"]
[Date "2022.06.27"]
[Round "2.31"]
[White "Bosco, Giuliana"]
[Black "Matus, Nastassja"]
[Result "0-1"]
[ECO "B12"]
[WhiteElo "1803"]
[BlackElo "1908"]
[Annotator "NA RC"]
[PlyCount "62"]
[EventDate "2022.06.26"]
[EventType "swiss"]
[EventCountry "URU"]
[SourceTitle "playchess.com"]
[Source "ChessBase"]
[SourceQuality "1"]
[TimeControl "5400+30"]

1. e4 {[%emt 0:00:04]} c6 {[%emt 0:00:06]} 2. d4 {[%emt 0:00:08]} d5 {[%emt 0:00:07]} 3. e5 {[%emt 0:00:06]} Bf5 {[%emt 0:00:05]} 4. h4 {[%emt 0:00:15]} h5 {[%emt 0:04:34]} 5. Bd3 {[%emt 0:00:13]} Bxd3 6. Qxd3 {[%emt 0:00:09]} e6 {[%emt 0:01:14]} 7. Bg5 {[%emt 0:00:13]} Qc7 {[%emt 0:03:05]} 8. Nf3 {[%emt 0:08:42]} c5 {[%emt 0:06:10]} 9. c4 {[%emt 0:05:59]} cxd4 {[%emt 0:04:04]} 10. cxd5 {[%emt 0:01:02]} Qa5+ {[%emt 0:01:38]} 11. Nbd2 {[%emt 0:01:22]} Qxd5 {[%emt 0:01:16]} 12. Qxd4 {[%emt 0:01:03]} Ne7 {[%emt 0:06:59]} 13. Nc4 {[%emt 0:28:42]} Qxd4 {[%emt 0:03:55]} 14. Nxd4 {[%emt 0:00:16]} Nd5 {[%emt 0:01:29]} 15. Rd1 {[%emt 0:08:41]} Nd7 {[%emt 0:14:39]} 16. Rh3 {[%emt 0:14:25]} Bb4+ {[%emt 0:04:41]} 17. Ke2 {[%emt 0:01:38]} Rc8 {[%emt 0:03:59]} 18. Rc1 {[%emt 0:02:30]} O-O {[%emt 0:02:57]} 19. Rg3 {[%emt 0:13:14]} Kh7 {[%emt 0:01:43]} 20. Rc2 {[%emt 0:02:13]} a6 {[%emt 0:03:22]} 21. a3 {[%emt 0:07:33]} Bc5 {[%emt 0:04:51]} 22. Nb3 {[%emt 0:01:04]} Ba7 {[%emt 0:06:52]} 23. Kd1 {[%emt 0:01:47]} b5 {[%emt 0:01:18]} 24. Nd6 {[%emt 0:00:24]} Rxc2 {[%emt 0:00:21]} 25. Kxc2 {[%emt 0:00:01]} Nxe5 {[%emt 0:00:54]} 26. Bd2 {[%emt 0:01:11]} f6 {[%emt 0:02:29]} 27. Ne4 {[%emt 0:00:21]} Rc8+ {[%emt 0:00:56]} 28. Kd1 {[%emt 0:00:33]} Rc4 {[%emt 0:02:08]} 29. Nd6 {[%emt 0:00:26]} Rxh4 {[%emt 0:01:07]} 30. Ne8 {[%emt 0:00:10]} Ng6 {[%emt 0:03:49]} 31. Rd3 {[%emt 0:00:52]} Bxf2 {[%emt 0:01:04]} 0-1

[Event "32nd Panamerican Youth 2022"]
[Site "Montevideo"]
[Date "2022.06.27"]
[Round "2.32"]
[White "Ibarra Mayorga, Ximena"]
[Black "Castano, Saray"]
[Result "1-0"]
[ECO "D85"]
[WhiteElo "1686"]
[BlackElo "1704"]
[Annotator "NA RC"]
[PlyCount "39"]
[EventDate "2022.06.26"]
[EventType "swiss"]
[EventCountry "URU"]
[SourceTitle "playchess.com"]
[Source "ChessBase"]
[SourceQuality "1"]
[TimeControl "5400+30"]

1. d4 {[%emt 0:00:17]} Nf6 {[%emt 0:04:26]} 2. c4 {[%emt 0:00:30]} g6 {[%emt 0:00:30]} 3. Nc3 {[%emt 0:00:30]} d5 {[%emt 0:00:30]} 4. cxd5 {[%emt 0:00:30]} Nxd5 {[%emt 0:00:30]} 5. e4 {[%emt 0:00:30]} Nxc3 {[%emt 0:00:30]} 6. bxc3 {[%emt 0:00:30]} Bg7 {[%emt 0:00:30]} 7. Nf3 {[%emt 0:00:30]} O-O {[%emt 0:00:30]} 8. Rb1 {[%emt 0:00:30]} c5 {[%emt 0:00:30]} 9. Be2 {[%emt 0:00:30]} Nc6 {[%emt 0:00:30]} 10. d5 {[%emt 0:00:30]} Bxc3+ {[%emt 0:00:30]} 11. Bd2 {[%emt 0:00:30]} Bxd2+ {[%emt 0:00:30]} 12. Qxd2 {[%emt 0:00:30]} Nb8 {[%emt 0:00:30]} 13. h4 {[%emt 0:00:30]} h5 {[%emt 0:00:30]} 14. Qh6 {[%emt 0:00:30]} Qa5+ {[%emt 0:00:30]} 15. Kf1 {[%emt 0:00:30]} Qxa2 {[%emt 0:00:30]} 16. Re1 {[%emt 0:00:30]} f6 {[%emt 0:00:30]} 17. Qxg6+ {[%emt 0:00:30]} Kh8 {[%emt 0:00:30]} 18. Ng5 {[%emt 0:00:30]} fxg5 {[%emt 0:00:30]} 19. Qxh5+ {[%emt 0:00:30]} Kg8 {[%emt 0:00:30]} 20. hxg5 {[%emt 0:00:30]} 1-0

[Event "32nd Panamerican Youth 2022"]
[Site "Montevideo"]
[Date "2022.06.27"]
[Round "2.34"]
[White "Galaviz Medina, Sion Radamantys"]
[Black "Jaque Gutierrez, Matias"]
[Result "0-1"]
[ECO "D35"]
[WhiteElo "2379"]
[BlackElo "2011"]
[Annotator "TA"]
[PlyCount "92"]
[EventDate "2022.06.26"]
[EventType "swiss"]
[EventCountry "URU"]
[SourceTitle "playchess.com"]
[Source "ChessBase"]
[SourceQuality "1"]
[TimeControl "5400+30"]

{[%evp 13,92,15,23,19,16,15,12,16,22,16,14,17,20,-7,-7,-85,-75,-169,-103,-106,-75,-87,-106,-115,-101,-108,-87,-155,-162,-256,-169,-172,-179,-194,-190,-182,-175,-149,-104,-136,-89,-100,-98,-84,-60,-62,-52,-65,191,192,198,191,200,200,181,181,200,160,181,-803,-815,-786,-786,-769,-717,-875,-861,-1247,-1156,-2380,-2270,-2875,-2413,-3996,-2165,-4177,-4137,-5627,-5710,-4129,-1078]} 1. d4 d5 2. c4 e6 3. Nc3 Nf6 4. cxd5 exd5 5. Bg5 c6 6. e3 Bd6 7. Bd3 O-O 8. Qc2 {[%cal Od3h7] next Bxh7+! is good for White. D35: Queen's Gambit Declined: Exchange Variation.} h6 9. Bh4 Re8 10. Nge2 {The position is equal.} a5 11. h3 Na6 {[%cal Bb8a6,Ba6c7,Bc7e6][%mdl 32]} 12. a3 {Against Nb4} Nc7 13. g4 Ne6 {[#]} 14. O-O-O $146 (14. Kf1 $11) ({Predecessor:} 14. f3 b5 15. e4 dxe4 16. fxe4 Be7 17. Bf2 Bb7 18. e5 Nd7 19. Be4 b4 20. Na4 {0-1 (26) Dragun,K (2590)-Xiong,J (2686) Saint Louis 2022}) 14... b5 $17 {[%cal Bb7b5,Bb5b4][%mdl 32]} 15. f4 (15. Kb1 $17 {might work better.}) 15... g5 (15... b4 $19 16. g5 Nh5) 16. fxg5 hxg5 17. Bg3 b4 18. Bxd6 Qxd6 19. Rdf1 Ng7 20. Na4 ({White should try} 20. Nd1) 20... bxa3 21. b3 (21. Nc5 {was called for.}) 21... Rb8 22. Rf3 Ne4 23. Nc5 a4 24. Nxa4 {[#]} ({Avoid the trap} 24. Bxe4 $2 dxe4 25. Rxf7 Kxf7 $19) 24... Qb4 25. Nec3 Nxc3 {Black is more active.} 26. Nxc3 {[#]} Qxb3 ({Black should play} 26... Re7 $1 27. Rhf1 (27. Bh7+ Kf8 $17) 27... Qxb3 28. Bh7+ Kf8) 27. Qxb3 Rxb3 {The board is on fire.} 28. Kd2 Rb2+ 29. Bc2 $1 Be6 {Threatens to win with ...Ra8.} 30. Na4 $1 Reb8 {[%mdl 8192]} (30... Rb7 $15) 31. Nxb2 $18 axb2 32. Rb1 Ne8 33. Kc3 Nd6 34. Rxb2 Ra8 35. Bd3 Ra3+ 36. Rb3 $4 {[%mdl 8192]} (36. Kd2 $18) 36... Ne4+ $19 {Black is clearly winning.} 37. Kc2 Rxb3 {[%mdl 64] Deflection} 38. Kxb3 {[%mdl 4096] Endgame KRB-KBN} Nd2+ 39. Kb4 Nxf3 40. Kc5 Ne1 41. Bb1 Ng2 42. e4 Nf4 43. Kxc6 Kg7 {White must now prevent ...dxe4.} 44. Kd6 Kf6 {aiming for ...dxe4.} 45. e5+ Kg7 46. Bf5 Kf8 {Weighted Error Value: White=0.88/Black=0.24 (precise)} 0-1

[Event "32nd Panamerican Youth 2022"]
[Site "Montevideo"]
[Date "2022.06.27"]
[Round "2.35"]
[White "Montiel, Angel Nathanael"]
[Black "Vazquez, Facundo"]
[Result "0-1"]
[ECO "C01"]
[WhiteElo "1901"]
[BlackElo "2357"]
[Annotator "TA"]
[PlyCount "70"]
[EventDate "2022.06.26"]
[EventType "swiss"]
[EventCountry "URU"]
[SourceTitle "playchess.com"]
[Source "ChessBase"]
[SourceQuality "1"]
[TimeControl "5400+30"]

{[%evp 12,70,0,3,0,0,12,24,33,-22,0,-37,-41,-36,-14,-15,-7,-16,-18,-6,0,-32,-10,-25,-11,-20,-12,-24,-6,-7,0,0,0,-26,-20,-14,-13,-18,-19,-40,-29,-47,-29,-36,-40,-32,-27,-79,-54,-45,-37,-231,-193,-222,-145,-172,-108,-135,-112,-385,-368]} 1. e4 {[%emt 0:05:43]} e6 {[%emt 0:00:11]} 2. d4 {[%emt 0:00:06]} d5 {[%emt 0:00:17]} 3. exd5 exd5 {[%emt 0:00:09]} 4. Nf3 {[%emt 0:00:24]} Bd6 {[%emt 0:01:31]} 5. Nc3 {[%emt 0:02:47]} c6 {[%emt 0:05:01]} 6. Bd3 {[%emt 0:00:32]} Bg4 {[%emt 0:04:30]} 7. O-O {[%emt 0:03:08]} Ne7 {[%emt 0:02:28] C01: French: Exchange Variation.} 8. Re1 {[%emt 0:00:26]} Qc7 {[%emt 0:01:25][%cal Od6h2]} 9. h3 {[%emt 0:01:33]} Bh5 {[%emt 0:00:53] White has an edge.} 10. Be2 {[%emt 0:10:57]} ({Better is} 10. Qe2 $14) 10... Nd7 {[%emt 0:02:06][%cal Bb8d7,Bd7c5,Bc5e6][%mdl 32]} 11. Ne5 {[%emt 0:04:14]} (11. Nh4 $5 {[%cal Re2h5]} Bxe2 12. Rxe2 $11) 11... Bxe2 {[%emt 0:02:29]} 12. Qxe2 {[%emt 0:00:08] [#]} Bxe5 $146 ({Predecessor:} 12... O-O-O 13. Nxf7 h6 14. Nxh8 Rxh8 15. Bd2 Nf6 16. Qe6+ Qd7 17. Qxd7+ Kxd7 18. Ne2 Nf5 {1-0 (53) Hartmann,N (1290)-Popovic,N (1582) Frankfurt 2004}) 13. dxe5 {[%emt 0:00:52]} Nc5 {[%emt 0:01:38]} 14. Bg5 {[%emt 0:23:45]} Ne6 {[%emt 0:00:25]} 15. Bxe7 {[%emt 0:00:17]} Qxe7 {[%emt 0:00:03]} 16. Nd1 {[%emt 0:03:13]} h5 {[%emt 0:05:00]} 17. Qf3 {[%emt 0:13:50]} Qg5 {[%emt 0:08:08]} 18. Ne3 {[%emt 0:03:25]} g6 {[%emt 0:02:01] Against Nf5} 19. Rad1 {[%emt 0:07:09]} Rd8 {[%emt 0:02:36]} 20. c3 {[%emt 0:03:48]} O-O {[%emt 0:02:37]} 21. Nc2 {[%emt 0:00:44]} Rfe8 {[%emt 0:02:07]} 22. b4 {[%emt 0:08:07]} Nc7 {[%emt 0:13:49]} 23. Qe3 $1 {[%emt 0:01:28]} Qxe3 {[%emt 0:00:14]} 24. Rxe3 {[%emt 0:00:03]} Ra8 {[%emt 0:03:25]} 25. a4 {[%emt 0:02:32]} a5 {[%emt 0:00:28]} 26. b5 {[%emt 0:00:01]} cxb5 {[%emt 0:00:08]} 27. axb5 {[%emt 0:00:03]} b6 {[%emt 0:01:11]} 28. Nd4 {[%emt 0:00:59]} a4 {[%emt 0:02:47]} 29. f4 {[%emt 0:01:10]} (29. Ra1 $11) 29... Ra5 {[%emt 0:01:59]} 30. Ra1 {[%emt 0:00:49]} Rea8 {[%emt 0:01:14]} 31. e6 $2 {[%emt 0:01:39] [#]} (31. f5 $15) 31... fxe6 {[%emt 0:04:09]} 32. Nxe6 {[%emt 0:00:01]} Nxb5 {[%emt 0:00:25] White must now prevent ...Re8.} 33. Ng5 {[%emt 0:02:33]} Nc7 {[%emt 0:03:40] Inhibits Re6.} (33... a3 $19 {...a2 is the strong threat.} 34. Re6 Nxc3 35. Rxg6+ Kh8 36. Rxb6 Ne2+ 37. Kf2 Nxf4) 34. Re7 $17 {[%emt 0:00:31]} R5a7 {[%emt 0:00:29]} 35. Ne6 $2 {[%emt 0:00:24][%mdl 8192] [#]} (35. Rd7 $17 {was called for.}) 35... Nb5 $1 {[%emt 0:00:46][%csl LRc3,LRe7] Weighted Error Value: White=0.45/Black=0.12 (very precise)} 0-1

[Event "32nd Panamerican Youth 2022"]
[Site "Montevideo"]
[Date "2022.06.27"]
[Round "2.36"]
[White "Castro Silva, Moises Antonio"]
[Black "Gutierrez Reich, Francisco"]
[Result "1-0"]
[ECO "B06"]
[WhiteElo "2053"]
[BlackElo "1859"]
[Annotator "NA RC"]
[PlyCount "87"]
[EventDate "2022.06.26"]
[EventType "swiss"]
[EventCountry "URU"]
[SourceTitle "playchess.com"]
[Source "ChessBase"]
[SourceQuality "1"]
[TimeControl "5400+30"]

1. e4 g6 2. d4 Bg7 3. Nc3 d6 4. f4 Nc6 5. Be3 e6 6. Nf3 Nge7 7. Qd2 O-O 8. O-O-O f5 9. e5 d5 10. h4 h5 11. Ng5 Bh6 12. Rh3 Bxg5 13. fxg5 Na5 14. b3 b6 15. Kb1 Bd7 16. Ba6 Rb8 17. Ne2 c6 18. Bd3 Qc7 19. Qb4 Kf7 20. Nf4 Rfc8 21. Be2 c5 22. Qc3 cxd4 23. Qxc7 Rxc7 24. Bxd4 Nac6 25. Bb2 b5 26. Rc3 a6 27. Rc5 Rbc8 28. c4 dxc4 29. bxc4 Nb4 30. Rxc7 Rxc7 31. Ba3 Nbc6 32. cxb5 axb5 33. Bd6 Rb7 34. Bf3 Nc8 35. Bc5 Rc7 36. Bd6 Rb7 37. Rc1 Nxd6 38. exd6 Rb6 39. Nd3 Nd4 40. Ne5+ Ke8 41. Bxh5 Rxd6 42. Bxg6+ Kf8 43. h5 Nc6 44. Nxd7+ 1-0

[Event "32nd Panamerican Youth 2022"]
[Site "Montevideo"]
[Date "2022.06.27"]
[Round "3.3"]
[White "Li, Iris"]
[Black "Rojas Salas, Rihanna Irina"]
[Result "1-0"]
[ECO "B87"]
[WhiteElo "1365"]
[BlackElo "1057"]
[Annotator "NA RC"]
[PlyCount "75"]
[EventDate "2022.06.26"]
[EventType "swiss"]
[EventCountry "URU"]
[SourceTitle "playchess.com"]
[Source "ChessBase"]
[SourceQuality "1"]
[TimeControl "5400+30"]

1. e4 {[%emt 0:00:30]} c5 {[%emt 0:02:40]} 2. Nf3 {[%emt 0:00:00]} d6 {[%emt 0:01:45]} 3. d4 {[%emt 0:00:00]} cxd4 {[%emt 0:03:22]} 4. Nxd4 {[%emt 0:00:00]} Nf6 {[%emt 0:01:52]} 5. Nc3 {[%emt 0:00:00]} a6 {[%emt 0:02:32]} 6. Bc4 {[%emt 0:00:00]} e6 {[%emt 0:00:49]} 7. Bb3 {[%emt 0:00:19]} b5 {[%emt 0:01:51]} 8. O-O {[%emt 0:00:06]} Be7 {[%emt 0:02:26]} 9. Qf3 {[%emt 0:00:40]} Bb7 {[%emt 0:05:58]} 10. Bxe6 {[%emt 0:06:23]} fxe6 {[%emt 0:14:20]} 11. Nxe6 {[%emt 0:00:05]} Qd7 {[%emt 0:01:39]} 12. Nxg7+ {[%emt 0:00:25]} Kd8 {[%emt 0:02:15]} 13. Bg5 {[%emt 0:17:21]} Rf8 {[%emt 0:07:47]} 14. Qd3 {[%emt 0:14:50]} Nc6 {[%emt 0:07:00]} 15. Nf5 {[%emt 0:03:06]} Ne5 {[%emt 0:14:49]} 16. Qd4 {[%emt 0:10:40]} Rg8 {[%emt 0:03:05]} 17. f4 {[%emt 0:04:18]} Nc6 {[%emt 0:04:17]} 18. Qb6+ {[%emt 0:00:42]} Kc8 {[%emt 0:01:54]} 19. Rad1 {[%emt 0:11:47]} Rf8 {[%emt 0:05:09]} 20. Bxf6 {[%emt 0:07:31]} Rxf6 {[%emt 0:00:35]} 21. Nxe7+ {[%emt 0:01:03]} Qxe7 {[%emt 0:00:59]} 22. Nd5 {[%emt 0:00:18]} Qf7 {[%emt 0:00:22]} 23. Nxf6 {[%emt 0:00:28]} Qxf6 {[%emt 0:00:13]} 24. e5 {[%emt 0:01:26]} dxe5 {[%emt 0:00:50]} 25. fxe5 {[%emt 0:00:14]} Qe7 {[%emt 0:00:43]} 26. Rd6 {[%emt 0:06:17]} b4 {[%emt 0:00:40]} 27. Rxc6+ {[%emt 0:02:32]} Bxc6 {[%emt 0:00:10]} 28. Qxc6+ {[%emt 0:00:04]} Kb8 {[%emt 0:00:11]} 29. Qb6+ {[%emt 0:01:04]} Kc8 {[%emt 0:00:08]} 30. Rf6 {[%emt 0:03:04]} Rb8 {[%emt 0:00:25]} 31. Qc6+ {[%emt 0:00:44]} Kd8 {[%emt 0:00:12]} 32. Rd6+ {[%emt 0:00:20]} Qxd6 {[%emt 0:00:07]} 33. Qxd6+ {[%emt 0:00:04]} Kc8 {[%emt 0:00:13]} 34. Qc6+ {[%emt 0:00:14]} Kd8 {[%emt 0:00:09]} 35. e6 {[%emt 0:00:06]} Rc8 {[%emt 0:00:47]} 36. Qd6+ {[%emt 0:00:04]} Ke8 {[%emt 0:00:14]} 37. Qd7+ {[%emt 0:00:04]} Kf8 {[%emt 0:00:12]} 38. Qf7# {[%emt 0:00:04]} 1-0